[Event "Moscow-ch Women 2021"]
[Site "Moscow"]
[Date "2021.03.31"]
[Round "7.6"]
[White "Kanevskaya, Anna"]
[Black "Korovina, Yana"]
[Result "1/2-1/2"]
[ECO "E18"]
[WhiteElo "2130"]
[BlackElo "1531"]
[Annotator "NA"]
[PlyCount "192"]
[EventDate "2021.03.25"]
[EventType "swiss"]
[EventCountry "RUS"]
[SourceTitle "playchess.com"]
[Source "ChessBase"]
[SourceQuality "1"]
[TimeControl "5400+30"]

1. d4 {[%emt 0:14:57]} Nf6 {[%emt 0:00:15]} 2. Nf3 {[%emt 0:00:10]} e6 {[%emt 0:00:15]} 3. g3 {[%emt 0:00:47]} b6 {[%emt 0:00:53]} 4. Bg2 {[%emt 0:00:07]} Bb7 {[%emt 0:00:03]} 5. O-O {[%emt 0:00:33]} Be7 {[%emt 0:02:53]} 6. c4 {[%emt 0:00:20]} d5 {[%emt 0:01:17]} 7. cxd5 {[%emt 0:07:47]} exd5 {[%emt 0:01:33]} 8. Nc3 {[%emt 0:00:37]} O-O {[%emt 0:03:24]} 9. Qb3 {[%emt 0:03:09]} Ne4 {[%emt 0:03:08]} 10. Rd1 {[%emt 0:02:04]} Nxc3 {[%emt 0:05:52]} 11. Qxc3 {[%emt 0:00:16]} Nd7 {[%emt 0:07:19]} 12. Be3 {[%emt 0:14:10]} Nf6 {[%emt 0:06:37]} 13. Rac1 {[%emt 0:09:37]} Bd6 {[%emt 0:02:32]} 14. Bf4 {[%emt 0:06:34]} Ne4 {[%emt 0:10:18]} 15. Qc2 {[%emt 0:00:17]} Bxf4 {[%emt 0:00:15]} 16. gxf4 {[%emt 0:00:04]} c5 {[%emt 0:00:24]} 17. dxc5 {[%emt 0:02:33]} bxc5 {[%emt 0:01:17]} 18. Ne5 {[%emt 0:05:50]} Qh4 {[%emt 0:03:29]} 19. e3 {[%emt 0:01:18]} Rac8 {[%emt 0:02:34]} 20. f3 {[%emt 0:01:55]} Nf6 {[%emt 0:00:49]} 21. Qd2 {[%emt 0:06:55]} a6 {[%emt 0:04:24]} 22. Nd3 {[%emt 0:03:00]} Nd7 {[%emt 0:03:44]} 23. Qf2 {[%emt 0:01:30]} Qe7 {[%emt 0:06:00]} 24. Bh3 {[%emt 0:02:38]} f5 {[%emt 0:00:58]} 25. Ne1 {[%emt 0:01:38]} Nb6 {[%emt 0:03:25]} 26. Bf1 {[%emt 0:00:58]} Rfe8 {[%emt 0:03:14]} 27. Rc3 {[%emt 0:01:44]} Qf6 {[%emt 0:05:47]} 28. Ng2 {[%emt 0:04:17]} Red8 {[%emt 0:03:18]} 29. Rdc1 {[%emt 0:02:19]} Qd6 {[%emt 0:06:11]} 30. Rd1 {[%emt 0:03:10]} Qf6 {[%emt 0:00:42]} 31. Rb3 {[%emt 0:01:48]} c4 {[%emt 0:01:56]} 32. Ra3 {[%emt 0:01:11]} Rc6 {[%emt 0:03:13]} 33. Rc3 {[%emt 0:00:55]} Na4 {[%emt 0:00:42]} 34. Ra3 {[%emt 0:00:30]} Nb6 {[%emt 0:01:15]} 35. Rd4 {[%emt 0:00:17]} Rcc8 {[%emt 0:01:31]} 36. Qd2 {[%emt 0:00:43]} Qe7 {[%emt 0:00:40]} 37. Rc3 {[%emt 0:01:09]} Na4 {[%emt 0:01:35]} 38. Rc1 {[%emt 0:00:16]} Nb6 {[%emt 0:01:23]} 39. Rd1 {[%emt 0:00:25]} Re8 {[%emt 0:01:48]} 40. Qc2 {[%emt 0:00:40]} Qf7 {[%emt 0:00:58]} 41. Qd2 {[%emt 0:00:42]} Qe7 {[%emt 0:00:07]} 42. Qc2 {[%emt 0:00:29]} Qf7 {[%emt 0:00:02]} 43. b4 {[%emt 0:00:35]} g6 {[%emt 0:01:16]} 44. Rb1 {[%emt 0:00:30]} Qd7 {[%emt 0:01:02]} 45. a3 {[%emt 0:00:31]} Qa4 {[%emt 0:00:27]} 46. Qxa4 {[%emt 0:00:32]} Nxa4 {[%emt 0:00:01]} 47. Rc1 {[%emt 0:00:19]} Nb6 {[%emt 0:00:36]} 48. Kf2 {[%emt 0:00:15]} Kf7 {[%emt 0:00:09]} 49. Ne1 {[%emt 0:00:18]} Re7 {[%emt 0:00:24]} 50. Nc2 {[%emt 0:00:25]} Rce8 {[%emt 0:00:22]} 51. Rdd1 {[%emt 0:00:31]} Ba8 {[%emt 0:00:51]} 52. Re1 {[%emt 0:00:34]} Bb7 {[%emt 0:00:27]} 53. Nd4 {[%emt 0:00:06]} Kf6 {[%emt 0:00:28]} 54. Rb1 {[%emt 0:00:37]} Kf7 {[%emt 0:00:21]} 55. h4 {[%emt 0:01:10]} Kf6 {[%emt 0:00:21]} 56. b5 {[%emt 0:00:19]} a5 {[%emt 0:00:09]} 57. Nc6 {[%emt 0:00:51]} Rc7 {[%emt 0:01:09]} 58. Ne5 {[%emt 0:00:32]} Rcc8 {[%emt 0:00:49]} 59. Rec1 {[%emt 0:00:15]} Re7 {[%emt 0:00:32]} 60. Be2 {[%emt 0:00:12]} Ree8 {[%emt 0:00:13]} 61. Bd1 {[%emt 0:00:12]} Red8 {[%emt 0:00:32]} 62. Be2 {[%emt 0:00:56]} Re8 {[%emt 0:00:10]} 63. Rd1 {[%emt 0:00:46]} Red8 {[%emt 0:00:56]} 64. Rd4 {[%emt 0:00:17]} Nd7 {[%emt 0:00:43]} 65. Bxc4 {[%emt 0:00:50]} Nxe5 {[%emt 0:00:25]} 66. fxe5+ {[%emt 0:00:04]} Kxe5 {[%emt 0:00:06]} 67. f4+ {[%emt 0:00:11]} Ke6 {[%emt 0:00:26]} 68. Bb3 {[%emt 0:01:08]} Rc3 {[%emt 0:00:59]} 69. Ra4 {[%emt 0:00:35]} Ra8 {[%emt 0:00:10]} 70. Ke2 {[%emt 0:00:19]} Rc5 {[%emt 0:00:35]} 71. Bd1 {[%emt 0:00:29]} Kd6 {[%emt 0:00:17]} 72. Kd2 {[%emt 0:00:26]} Rc4 {[%emt 0:01:00]} 73. Rc1 {[%emt 0:00:50]} Rxa4 {[%emt 0:00:16]} 74. Bxa4 {[%emt 0:00:04]} Rc8 {[%emt 0:00:14]} 75. Rxc8 {[%emt 0:00:56]} Bxc8 {[%emt 0:00:02]} 76. Kc3 {[%emt 0:00:28]} Kc5 {[%emt 0:00:22]} 77. b6 {[%emt 0:00:26]} Kxb6 {[%emt 0:02:00]} 78. Kd4 {[%emt 0:00:08]} Bb7 {[%emt 0:00:46]} 79. Be8 {[%emt 0:00:26]} Bc6 {[%emt 0:00:21]} 80. Bf7 {[%emt 0:00:08]} Kb5 {[%emt 0:00:10]} 81. Bg8 {[%emt 0:00:11]} h6 {[%emt 0:00:45]} 82. Bf7 {[%emt 0:01:39]} Ka4 {[%emt 0:00:05]} 83. Bxg6 {[%emt 0:00:04]} Kxa3 {[%emt 0:00:03]} 84. Kc3 {[%emt 0:00:33]} Bd7 {[%emt 0:00:23]} 85. Bf7 {[%emt 0:00:05]} Ka4 {[%emt 0:00:49]} 86. Bxd5 {[%emt 0:00:05]} Kb5 {[%emt 0:00:03]} 87. Kd4 {[%emt 0:00:43]} Kb6 {[%emt 0:00:35]} 88. Ke5 {[%emt 0:01:29]} Kc7 {[%emt 0:00:18]} 89. Ba2 {[%emt 0:00:30]} a4 {[%emt 0:00:15]} 90. Kf6 {[%emt 0:00:15]} Kd6 {[%emt 0:00:09]} 91. Kg6 {[%emt 0:00:27]} Ke7 {[%emt 0:00:50]} 92. Bb1 {[%emt 0:00:47]} Be6 {[%emt 0:00:47]} 93. e4 {[%emt 0:00:31]} fxe4 {[%emt 0:00:09]} 94. Bxe4 {[%emt 0:00:04]} a3 {[%emt 0:00:14]} 95. Bb1 {[%emt 0:00:03]} h5 {[%emt 0:00:51]} 96. f5 {[%emt 0:00:31]} a2 {[%emt 0:01:01]} 1/2-1/2

[Event "Moscow-ch Women 2021"]
[Site "Moscow"]
[Date "2021.03.31"]
[Round "7.7"]
[White "Ivanova, Anastasia S."]
[Black "Lyutsinger, Iren"]
[Result "0-1"]
[ECO "A45"]
[WhiteElo "1830"]
[BlackElo "1464"]
[Annotator "NA"]
[PlyCount "93"]
[EventDate "2021.03.25"]
[EventType "swiss"]
[EventCountry "RUS"]
[SourceTitle "playchess.com"]
[Source "ChessBase"]
[SourceQuality "1"]
[TimeControl "5400+30"]

1. d4 {[%emt 0:00:00]} Nf6 {[%emt 0:00:00]} 2. Bg5 {[%emt 0:00:00]} Ne4 {[%emt 0:00:00]} 3. Bf4 {[%emt 0:00:00]} d5 {[%emt 0:00:29]} 4. f3 {[%emt 0:00:40]} Nf6 {[%emt 0:00:07]} 5. c4 {[%emt 0:09:40]} c5 {[%emt 0:02:35]} 6. e3 {[%emt 0:08:25]} Nc6 {[%emt 0:03:46]} 7. Be5 {[%emt 0:06:23]} dxc4 {[%emt 0:03:02]} 8. Bxc4 {[%emt 0:02:33]} cxd4 {[%emt 0:01:13]} 9. Bxd4 {[%emt 0:02:09]} e5 {[%emt 0:02:34]} 10. Bc3 {[%emt 0:05:06]} Qxd1+ {[%emt 0:00:16]} 11. Kxd1 {[%emt 0:00:05]} Bc5 {[%emt 0:02:29]} 12. Ke2 {[%emt 0:02:35]} Bf5 {[%emt 0:06:25]} 13. g4 {[%emt 0:05:55]} Be6 {[%emt 0:05:08]} 14. Bb5 {[%emt 0:06:07]} O-O-O {[%emt 0:03:16]} 15. Bxc6 {[%emt 0:05:33]} bxc6 {[%emt 0:02:34]} 16. b3 {[%emt 0:07:45]} Rhe8 {[%emt 0:02:14]} 17. h3 {[%emt 0:04:54]} Nd5 {[%emt 0:02:48]} 18. Bd2 {[%emt 0:00:26]} f5 {[%emt 0:06:40]} 19. g5 {[%emt 0:06:52]} f4 {[%emt 0:01:25]} 20. e4 {[%emt 0:01:13]} Ne3 {[%emt 0:01:20]} 21. Nc3 {[%emt 0:00:43]} Nc2 {[%emt 0:04:14]} 22. Rc1 {[%emt 0:00:51]} Nd4+ {[%emt 0:00:32]} 23. Ke1 {[%emt 0:00:35]} Ba3 {[%emt 0:01:36]} 24. Rd1 {[%emt 0:01:23]} Rd7 {[%emt 0:00:43]} 25. Bc1 {[%emt 0:07:21]} Bb4 {[%emt 0:02:52]} 26. Bb2 {[%emt 0:00:41]} Red8 {[%emt 0:00:25]} 27. Kf2 {[%emt 0:01:16]} Bc5 {[%emt 0:01:35]} 28. Kg2 {[%emt 0:00:47]} h6 {[%emt 0:09:16]} 29. h4 {[%emt 0:04:02]} Be7 {[%emt 0:01:50]} 30. Kf2 {[%emt 0:03:42]} Bc5 {[%emt 0:01:28]} 31. Kg2 {[%emt 0:01:28]} Bf7 {[%emt 0:01:06]} 32. Nh3 {[%emt 0:01:42]} Bh5 {[%emt 0:02:02]} 33. Ng1 {[%emt 0:00:41]} a6 {[%emt 0:02:59]} 34. Na4 {[%emt 0:01:56]} Ba7 {[%emt 0:01:16]} 35. Bc3 {[%emt 0:02:29]} Kb7 {[%emt 0:02:28]} 36. Ba5 {[%emt 0:00:55]} Nc2 {[%emt 0:02:29]} 37. Rxd7+ {[%emt 0:00:36]} Rxd7 {[%emt 0:00:00]} 38. Ne2 {[%emt 0:00:58]} Ne3+ {[%emt 0:00:14]} 39. Kh3 {[%emt 0:00:29]} Bxf3 {[%emt 0:00:26]} 40. Re1 {[%emt 0:00:19]} hxg5 {[%emt 0:01:02]} 41. Bc3 {[%emt 0:00:43]} g4+ {[%emt 0:00:27]} 42. Kh2 {[%emt 0:00:03]} g3+ {[%emt 0:00:34]} 43. Nxg3 {[%emt 0:00:03]} fxg3+ {[%emt 0:00:35]} 44. Kxg3 {[%emt 0:00:02]} Bxe4 {[%emt 0:00:24]} 45. Bxe5 {[%emt 0:00:15]} Rf7 {[%emt 0:01:11]} 46. Bf4 {[%emt 0:01:40]} Bd5 {[%emt 0:01:46]} 47. Rc1 {[%emt 0:01:29]} 0-1

[Event "Moscow-ch Women 2021"]
[Site "Moscow"]
[Date "2021.03.31"]
[Round "7.8"]
[White "Kuznetsova, Veronika"]
[Black "Antonova, Nadezhda"]
[Result "1/2-1/2"]
[ECO "B26"]
[WhiteElo "1343"]
[BlackElo "1877"]
[Annotator "NA"]
[PlyCount "177"]
[EventDate "2021.03.25"]
[EventType "swiss"]
[EventCountry "RUS"]
[SourceTitle "playchess.com"]
[Source "ChessBase"]
[SourceQuality "1"]
[TimeControl "5400+30"]

1. e4 {[%emt 0:00:00]} c5 {[%emt 0:00:00]} 2. Nc3 {[%emt 0:00:00]} Nc6 {[%emt 0:00:00]} 3. g3 {[%emt 0:00:00]} g6 {[%emt 0:00:50]} 4. Bg2 {[%emt 0:00:00]} Bg7 {[%emt 0:00:05]} 5. d3 {[%emt 0:00:00]} d6 {[%emt 0:00:16]} 6. Be3 {[%emt 0:00:05]} Rb8 {[%emt 0:01:13]} 7. Qd2 {[%emt 0:00:41]} b5 {[%emt 0:00:37]} 8. h3 {[%emt 0:01:19]} b4 {[%emt 0:00:43]} 9. Nd1 {[%emt 0:00:05]} h5 {[%emt 0:00:46]} 10. Nf3 {[%emt 0:01:05]} Nf6 {[%emt 0:05:51]} 11. O-O {[%emt 0:01:07]} Bb7 {[%emt 0:01:26]} 12. c3 {[%emt 0:02:02]} a5 {[%emt 0:00:33]} 13. a3 {[%emt 0:03:19]} O-O {[%emt 0:04:44]} 14. Bh6 {[%emt 0:01:41]} c4 {[%emt 0:02:00]} 15. Bxg7 {[%emt 0:00:50]} Kxg7 {[%emt 0:00:02]} 16. axb4 {[%emt 0:09:36]} axb4 {[%emt 0:00:43]} 17. Ne3 {[%emt 0:12:31]} Na5 {[%emt 0:10:23]} 18. Nf5+ {[%emt 0:31:33]} gxf5 {[%emt 0:04:29]} 19. Qg5+ {[%emt 0:00:18]} Kh8 {[%emt 0:00:50]} 20. Qh6+ {[%emt 0:00:22]} Kg8 {[%emt 0:00:34]} 21. Qg5+ {[%emt 0:00:13]} Kh7 {[%emt 0:01:44]} 22. Qxf5+ {[%emt 0:00:18]} Kh8 {[%emt 0:00:01]} 23. Qxa5 {[%emt 0:04:20]} Qxa5 {[%emt 0:01:09]} 24. Rxa5 {[%emt 0:00:04]} cxd3 {[%emt 0:00:04]} 25. Nd2 {[%emt 0:08:08]} bxc3 {[%emt 0:04:19]} 26. bxc3 {[%emt 0:00:05]} Rfc8 {[%emt 0:00:03]} 27. c4 {[%emt 0:00:11]} Bc6 {[%emt 0:02:14]} 28. Ra3 {[%emt 0:01:04]} Nd7 {[%emt 0:02:34]} 29. Rxd3 {[%emt 0:01:36]} Rb2 {[%emt 0:00:09]} 30. Nb1 {[%emt 0:09:58]} Ra8 {[%emt 0:19:40]} 31. Rd2 {[%emt 0:04:11]} Rb3 {[%emt 0:00:27]} 32. Rdd1 {[%emt 0:00:34]} Ra2 {[%emt 0:06:01]} 33. Rc1 {[%emt 0:01:10]} Nc5 {[%emt 0:02:19]} 34. Nc3 {[%emt 0:00:40]} Raa3 {[%emt 0:00:48]} 35. Nd5 {[%emt 0:00:21]} Ra7 {[%emt 0:01:51]} 36. Rb1 {[%emt 0:00:47]} Rba3 {[%emt 0:00:07]} 37. h4 {[%emt 0:00:28]} Kg7 {[%emt 0:03:16]} 38. Rfe1 {[%emt 0:00:23]} f6 {[%emt 0:06:07]} 39. Nf4 {[%emt 0:00:40]} Be8 {[%emt 0:00:14]} 40. Nd5 {[%emt 0:00:08]} Ra2 {[%emt 0:00:57]} 41. Ne3 {[%emt 0:00:47]} Nd3 {[%emt 0:01:28]} 42. Rf1 {[%emt 0:00:19]} Bf7 {[%emt 0:02:20]} 43. Nd5 {[%emt 0:00:50]} Be6 {[%emt 0:03:02]} 44. Rbd1 {[%emt 0:00:47]} Ne5 {[%emt 0:01:02]} 45. Rc1 {[%emt 0:00:17]} Bg4 {[%emt 0:00:21]} 46. Nf4 {[%emt 0:00:48]} Be2 {[%emt 0:04:10]} 47. Nxe2 {[%emt 0:01:07]} Rxe2 {[%emt 0:00:02]} 48. Rfe1 {[%emt 0:02:07]} Rea2 {[%emt 0:02:01]} 49. Red1 {[%emt 0:00:37]} R7a3 {[%emt 0:03:48]} 50. Rf1 {[%emt 0:01:15]} Nd3 {[%emt 0:01:03]} 51. Rcd1 {[%emt 0:00:34]} Ne5 {[%emt 0:01:40]} 52. Rc1 {[%emt 0:00:22]} Rb2 {[%emt 0:01:08]} 53. c5 {[%emt 0:02:03]} Nd3 {[%emt 0:00:46]} 54. Rb1 {[%emt 0:00:10]} Rxb1 {[%emt 0:01:47]} 55. Rxb1 {[%emt 0:00:03]} dxc5 {[%emt 0:00:01]} 56. Bf3 {[%emt 0:00:31]} Kg6 {[%emt 0:00:22]} 57. Be2 {[%emt 0:00:31]} Ne5 {[%emt 0:01:05]} 58. Rc1 {[%emt 0:00:22]} Ra5 {[%emt 0:00:08]} 59. Kg2 {[%emt 0:00:19]} Ra2 {[%emt 0:00:33]} 60. Kf1 {[%emt 0:00:53]} Ra5 {[%emt 0:00:44]} 61. Kg2 {[%emt 0:00:07]} Nc6 {[%emt 0:01:03]} 62. Kg1 {[%emt 0:01:46]} Nd4 {[%emt 0:00:15]} 63. Bd3 {[%emt 0:00:51]} Kf7 {[%emt 0:01:17]} 64. Kf1 {[%emt 0:00:38]} Ke6 {[%emt 0:00:32]} 65. Be2 {[%emt 0:00:42]} Nxe2 {[%emt 0:00:36]} 66. Kxe2 {[%emt 0:00:04]} Ke5 {[%emt 0:00:06]} 67. Ke3 {[%emt 0:01:00]} Ra3+ {[%emt 0:00:19]} 68. Ke2 {[%emt 0:00:04]} Kd4 {[%emt 0:00:08]} 69. f3 {[%emt 0:00:33]} Ra2+ {[%emt 0:00:11]} 70. Kf1 {[%emt 0:00:18]} c4 {[%emt 0:00:08]} 71. g4 {[%emt 0:00:44]} hxg4 {[%emt 0:00:46]} 72. fxg4 {[%emt 0:00:04]} Rh2 {[%emt 0:00:01]} 73. Rd1+ {[%emt 0:00:28]} Kxe4 {[%emt 0:00:15]} 74. h5 {[%emt 0:00:12]} c3 {[%emt 0:00:24]} 75. Kg1 {[%emt 0:00:18]} Rh4 {[%emt 0:00:44]} 76. Kf2 {[%emt 0:00:42]} Rxg4 {[%emt 0:02:12]} 77. Rh1 {[%emt 0:00:15]} Kd3 {[%emt 0:00:23]} 78. h6 {[%emt 0:00:35]} c2 {[%emt 0:00:49]} 79. h7 {[%emt 0:00:17]} Rh4 {[%emt 0:01:08]} 80. Rxh4 {[%emt 0:01:23]} c1=Q {[%emt 0:00:03]} 81. h8=Q {[%emt 0:00:07]} Qe3+ {[%emt 0:00:13]} 82. Kg2 {[%emt 0:00:51]} Qd2+ {[%emt 0:00:22]} 83. Kg3 {[%emt 0:01:12]} Qe3+ {[%emt 0:00:14]} 84. Kg2 {[%emt 0:00:35]} Qd2+ {[%emt 0:00:26]} 85. Kg3 {[%emt 0:00:05]} Qe3+ {[%emt 0:00:22]} 86. Kg2 {[%emt 0:00:26]} Qd2+ {[%emt 0:00:17]} 87. Kg3 {[%emt 0:00:29]} Qe3+ {[%emt 0:00:11]} 88. Kg2 {[%emt 0:00:14]} Qd2+ {[%emt 0:00:08]} 89. Kg3 {[%emt 0:00:07]} 1/2-1/2

[Event "Moscow-ch Women 2021"]
[Site "Moscow"]
[Date "2021.03.31"]
[Round "7.9"]
[White "Cherepanova, Evita"]
[Black "Mayorova, Varvara"]
[Result "1-0"]
[ECO "B42"]
[WhiteElo "1621"]
[BlackElo "1446"]
[Annotator "NA"]
[PlyCount "93"]
[EventDate "2021.03.25"]
[EventType "swiss"]
[EventCountry "RUS"]
[SourceTitle "playchess.com"]
[Source "ChessBase"]
[SourceQuality "1"]
[TimeControl "5400+30"]

1. e4 {[%emt 1:30:30]} c5 {[%emt 0:05:02]} 2. Nf3 {[%emt 0:00:00]} e6 {[%emt 0:00:14]} 3. d4 {[%emt 0:00:00]} cxd4 {[%emt 0:00:04]} 4. Nxd4 {[%emt 0:00:00]} a6 {[%emt 0:00:09]} 5. Bd3 {[%emt 0:00:00]} Nf6 {[%emt 0:00:16]} 6. O-O {[%emt 0:00:00]} Qc7 {[%emt 0:00:02]} 7. Qe2 {[%emt 0:00:00]} d6 {[%emt 0:00:12]} 8. c4 {[%emt 0:00:00]} Be7 {[%emt 0:01:16]} 9. Nc3 {[%emt 0:00:00]} Nbd7 {[%emt 0:01:34]} 10. f4 {[%emt 0:00:00]} O-O {[%emt 0:02:06]} 11. Be3 {[%emt 0:00:00]} Re8 {[%emt 0:02:36]} 12. Rad1 {[%emt 0:00:00]} b6 {[%emt 0:01:28]} 13. Nf3 {[%emt 0:00:00]} e5 {[%emt 0:01:57]} 14. f5 {[%emt 0:00:00]} Bb7 {[%emt 0:01:01]} 15. Nd5 {[%emt 0:00:00]} Nxd5 {[%emt 0:00:53]} 16. cxd5 {[%emt 0:00:00]} Nf6 {[%emt 0:07:36]} 17. Nd2 {[%emt 0:00:00]} b5 {[%emt 0:01:28]} 18. g4 {[%emt 0:00:00]} h6 {[%emt 0:01:00]} 19. h4 {[%emt 0:00:00]} Nh7 {[%emt 0:00:30]} 20. Nf3 {[%emt 0:00:00]} Qd8 {[%emt 0:00:27]} 21. Qf2 {[%emt 0:00:00]} Bf6 {[%emt 0:03:04]} 22. Qg3 {[%emt 0:00:00]} Bxd5 {[%emt 0:14:38]} 23. g5 {[%emt 0:00:00]} hxg5 {[%emt 0:01:46]} 24. hxg5 {[%emt 0:00:00]} Bxa2 {[%emt 0:00:06]} 25. gxf6 {[%emt 0:00:00]} Qxf6 {[%emt 0:00:56]} 26. Rd2 {[%emt 0:00:00]} g6 {[%emt 0:03:57]} 27. Nh4 {[%emt 0:00:00]} g5 {[%emt 0:01:09]} 28. Rg2 {[%emt 0:00:00]} Qg7 {[%emt 0:02:29]} 29. Bxg5 {[%emt 0:00:00]} Nxg5 {[%emt 0:00:23]} 30. Qxg5 {[%emt 0:00:00]} Qxg5 {[%emt 0:00:16]} 31. Rxg5+ {[%emt 0:00:00]} Kf8 {[%emt 0:00:25]} 32. f6 {[%emt 0:00:00]} Red8 {[%emt 0:00:45]} 33. Be2 {[%emt 0:00:00]} Be6 {[%emt 0:01:48]} 34. Nf5 {[%emt 0:00:00]} Ke8 {[%emt 0:01:17]} 35. Ng7+ {[%emt 0:00:00]} Kd7 {[%emt 0:00:16]} 36. Nxe6 {[%emt 0:00:00]} fxe6 {[%emt 0:00:18]} 37. Rg7+ {[%emt 0:00:00]} Kc6 {[%emt 0:00:07]} 38. f7 {[%emt 0:00:00]} Rf8 {[%emt 0:00:59]} 39. Bg4 {[%emt 0:00:00]} Kd7 {[%emt 0:01:32]} 40. Rf6 {[%emt 0:00:00]} Ra7 {[%emt 0:01:38]} 41. Rxe6 {[%emt 0:00:00]} Kc6 {[%emt 0:00:09]} 42. Bh5 {[%emt 0:00:00]} a5 {[%emt 0:01:58]} 43. Re8 {[%emt 0:00:00]} Ra8 {[%emt 0:00:18]} 44. Rxa8 {[%emt 0:00:00]} Rd8 {[%emt 0:41:55]} 45. Rb8 Rxb8 {[%emt 0:00:00]} 46. Rg8 {[%emt 0:00:00]} Rxg8+ {[%emt 0:00:00]} 47. fxg8=Q {[%emt 0:00:00]} 1-0

[Event "Moscow-ch Women 2021"]
[Site "Moscow"]
[Date "2021.03.31"]
[Round "7.10"]
[White "Shevtsova, Stefania"]
[Black "Kunikova, Polina S"]
[Result "1-0"]
[ECO "C78"]
[WhiteElo "1654"]
[BlackElo "1028"]
[Annotator "NA"]
[PlyCount "83"]
[EventDate "2021.03.25"]
[EventType "swiss"]
[EventCountry "RUS"]
[SourceTitle "playchess.com"]
[Source "ChessBase"]
[SourceQuality "1"]
[TimeControl "5400+30"]

1. e4 {[%emt 0:00:00]} e5 {[%emt 0:00:00]} 2. Nf3 {[%emt 0:00:00]} Nc6 {[%emt 0:00:00]} 3. Bb5 {[%emt 0:00:00]} a6 {[%emt 0:00:06]} 4. Ba4 {[%emt 0:00:06]} b5 {[%emt 0:00:36]} 5. Bb3 {[%emt 0:00:09]} Bc5 {[%emt 0:00:32]} 6. c3 {[%emt 0:01:22]} Bb6 {[%emt 0:02:14]} 7. O-O {[%emt 0:01:42]} Nf6 {[%emt 0:00:25]} 8. Re1 {[%emt 0:01:58]} O-O {[%emt 0:01:41]} 9. h3 {[%emt 0:02:05]} Bb7 {[%emt 0:00:51]} 10. d3 {[%emt 0:00:08]} h6 {[%emt 0:02:24]} 11. Nbd2 {[%emt 0:00:13]} Qe7 {[%emt 0:02:05]} 12. Nf1 {[%emt 0:01:23]} Qd6 {[%emt 0:02:23]} 13. Ng3 {[%emt 0:01:32]} Ne7 {[%emt 0:01:08]} 14. d4 {[%emt 0:00:58]} Ne8 {[%emt 0:13:46]} 15. Nxe5 {[%emt 0:01:07]} c5 {[%emt 0:01:19]} 16. Nf3 {[%emt 0:42:41]} Qc7 {[%emt 0:07:17]} 17. Be3 {[%emt 0:05:50]} c4 {[%emt 0:01:00]} 18. Bc2 {[%emt 0:00:08]} Nf6 {[%emt 0:00:36]} 19. e5 {[%emt 0:03:01]} Nfd5 {[%emt 0:00:36]} 20. Nd2 {[%emt 0:02:27]} d6 {[%emt 0:01:06]} 21. exd6 {[%emt 0:02:25]} Qxd6 {[%emt 0:00:32]} 22. Nde4 {[%emt 0:03:38]} Qc6 {[%emt 0:01:16]} 23. Qf3 {[%emt 0:02:32]} Nxe3 {[%emt 0:01:03]} 24. Rxe3 {[%emt 0:00:15]} Ng6 {[%emt 0:01:32]} 25. Rae1 {[%emt 0:03:03]} Qd7 {[%emt 0:01:23]} 26. Qf5 {[%emt 0:01:45]} Qc7 {[%emt 0:00:49]} 27. h4 {[%emt 0:01:18]} Bc8 {[%emt 0:01:02]} 28. Qd5 {[%emt 0:01:47]} Be6 {[%emt 0:03:00]} 29. Qd6 {[%emt 0:00:13]} Qxd6 {[%emt 0:05:02]} 30. Nxd6 {[%emt 0:00:08]} Nxh4 {[%emt 0:00:44]} 31. Nh5 {[%emt 0:04:20]} Rad8 {[%emt 0:02:01]} 32. Ne4 {[%emt 0:00:14]} Bg4 {[%emt 0:02:19]} 33. Nhf6+ {[%emt 0:01:23]} gxf6 {[%emt 0:01:22]} 34. Nxf6+ {[%emt 0:00:06]} Kg7 {[%emt 0:00:35]} 35. Nxg4 {[%emt 0:00:07]} b4 {[%emt 0:01:17]} 36. Ne5 {[%emt 0:00:24]} bxc3 {[%emt 0:02:09]} 37. bxc3 {[%emt 0:00:08]} Ng6 {[%emt 0:05:07]} 38. Nxc4 {[%emt 0:00:49]} Ba7 {[%emt 0:00:15]} 39. Ne5 {[%emt 0:01:08]} Ne7 {[%emt 0:02:14]} 40. Nxf7 {[%emt 0:01:37]} Rxf7 {[%emt 0:00:31]} 41. Rxe7 {[%emt 0:00:06]} Rc8 {[%emt 0:00:51]} 42. Bb3 {[%emt 0:00:38]} 1-0

[Event "Moscow-ch Women 2021"]
[Site "Moscow"]
[Date "2021.04.01"]
[Round "8.8"]
[White "Korovina, Yana"]
[Black "Shevtsova, Stefania"]
[Result "1/2-1/2"]
[ECO "B13"]
[WhiteElo "1531"]
[BlackElo "1654"]
[Annotator "NA RC"]
[PlyCount "64"]
[EventDate "2021.03.25"]
[EventType "swiss"]
[EventCountry "RUS"]
[SourceTitle "playchess.com"]
[Source "ChessBase"]
[SourceQuality "1"]
[TimeControl "5400+30"]

1. e4 {[%emt 0:00:00]} c6 {[%emt 0:00:00]} 2. d4 {[%emt 0:00:00]} d5 {[%emt 0:00:00]} 3. exd5 {[%emt 0:00:00]} cxd5 {[%emt 0:00:00]} 4. c4 {[%emt 0:00:00]} Nf6 {[%emt 0:00:09]} 5. Nc3 {[%emt 0:00:00]} Nc6 {[%emt 0:00:05]} 6. Nf3 {[%emt 0:00:00]} Bg4 {[%emt 0:01:32]} 7. cxd5 {[%emt 0:00:12]} Nxd5 {[%emt 0:00:07]} 8. Qb3 {[%emt 0:00:16]} Bxf3 {[%emt 0:00:07]} 9. gxf3 {[%emt 0:00:02]} e6 {[%emt 0:00:18]} 10. Qxb7 {[%emt 0:01:07]} Nxd4 {[%emt 0:00:27]} 11. Bb5+ {[%emt 0:00:07]} Nxb5 {[%emt 0:00:08]} 12. Qc6+ {[%emt 0:00:04]} Ke7 {[%emt 0:00:30]} 13. Qxb5 {[%emt 0:00:22]} Qd7 {[%emt 0:00:14]} 14. Qxd7+ {[%emt 0:02:45]} Kxd7 {[%emt 0:00:07]} 15. Nxd5 {[%emt 0:00:24]} exd5 {[%emt 0:00:05]} 16. Be3 {[%emt 0:00:42]} Ke6 {[%emt 0:24:36]} 17. Ke2 {[%emt 0:02:38]} Bd6 {[%emt 0:07:15]} 18. Rac1 {[%emt 0:02:54]} Rhc8 {[%emt 0:11:24]} 19. h3 {[%emt 0:04:39]} Be5 {[%emt 0:03:14]} 20. b3 {[%emt 0:02:09]} a5 {[%emt 0:09:51]} 21. Rxc8 {[%emt 0:02:13]} Rxc8 {[%emt 0:00:08]} 22. Rc1 {[%emt 0:00:20]} Rxc1 {[%emt 0:11:10]} 23. Bxc1 {[%emt 0:00:22]} d4 {[%emt 0:04:12]} 24. Kd3 {[%emt 0:02:32]} Kd5 {[%emt 0:00:06]} 25. Bb2 {[%emt 0:00:53]} g6 {[%emt 0:00:25]} 26. a3 {[%emt 0:00:50]} f5 {[%emt 0:00:34]} 27. Bc1 {[%emt 0:01:38]} Bc7 {[%emt 0:05:09]} 28. Bb2 {[%emt 0:01:15]} Bb6 {[%emt 0:00:24]} 29. Bc1 {[%emt 0:02:08]} Bc7 {[%emt 0:00:13]} 30. Bb2 {[%emt 0:00:40]} Bb6 {[%emt 0:00:06]} 31. Bc1 {[%emt 0:00:07]} Bc7 {[%emt 0:00:07]} 32. Bb2 {[%emt 0:00:04]} Bb6 {[%emt 0:00:10]} 1/2-1/2